bitfinex/quotes_ETHUSD_20250525
["timestamp","ask_amount","ask_price","bid_price","bid_amount"]
[1748145128233,0.8292,2512.3,2511.8,6.866]
[1748145128636,0.8292,2512.3,2511.7,6.354]
[1748145131460,0.8292,2512.3,2511.8,8.0]
[1748145133257,0.8292,2512.3,2511.8,8.3936198]
[1748145133769,0.8292,2512.3,2511.8,0.3936198]
[1748145133971,0.8292,2512.3,2511.9,6.353]
[1748145134323,9.60800671,2512.6,2510.7,0.62956989]
[1748145134324,0.04975835,2512.5,2510.7,0.62956989]
[1748145134657,0.754,2512.2,2511.1,8.0]
[1748145134866,0.754,2512.2,2511.1,8.39893268]
[1748145135314,0.754,2512.2,2511.2,6.353]
[1748145137078,0.55,2511.9,2510.7,0.7909]
[1748145137385,0.754,2511.8,2511.3,6.353]
[1748145137568,0.754,2511.8,2511.4,6.866]
[1748145138619,0.754,2511.8,2511.4,8.0]
[1748145139768,0.754,2512.7,2511.5,0.7909]
[1748145142139,0.754,2512.7,2511.6,0.37786432]
[1748145143576,0.754,2512.7,2511.5,0.7909]
[1748145143983,0.80375249,2512.7,2511.5,0.7909]
[1748145144290,0.754,2512.7,2511.5,0.7909]
[1748145145481,0.754,2512.7,2511.6,0.37766659]
[1748145146386,0.754,2512.7,2511.5,0.7909]
[1748145147584,0.833,2512.6,2511.6,26.869]
[1748145147787,0.833,2512.6,2511.6,6.858]
[1748145148786,0.833,2512.6,2511.7,8.0]
[1748145149104,0.833,2512.6,2511.8,0.7842]
[1748145152910,0.833,2512.6,2511.9,6.352]
[1748145153109,0.833,2512.6,2511.9,7.1462]
[1748145155213,0.833,2512.6,2511.9,6.352]
[1748145156326,0.833,2512.6,2512.0,8.0]
[1748145156929,0.833,2512.6,2511.6,0.7942]
[1748145157229,0.833,2512.6,2512.2,8.0]
[1748145157618,0.833,2512.6,2512.4,8.0]
[1748145157817,0.833,2512.6,2512.4,8.40092578]
[1748145159927,0.833,2512.6,2512.4,8.37368178]
[1748145162031,0.05,2512.9,2512.4,1.18142578]
[1748145166899,0.7548,2512.8,2512.4,0.40092578]
[1748145167102,0.7548,2512.8,2512.5,6.351]
[1748145167632,0.7548,2512.8,2512.6,26.862]
[1748145168928,0.05,2512.9,2512.6,6.856]
[1748145170819,0.05,2512.9,2512.7,8.0]
[1748145177524,0.05,2512.9,2512.8,26.853]
[1748145177725,0.7548,2512.7,2511.9,0.47270256]
[1748145177927,0.55,2512.3,2512.0,6.35]
[1748145178164,0.7548,2512.2,2512.0,6.35]
[1748145180979,0.7548,2512.2,2512.1,8.0]
[1748145181875,0.55,2512.8,2512.1,8.0]
[1748145182075,1.12574391,2512.7,2512.1,8.0]
[1748145183000,0.7548,2512.7,2512.1,8.0]
[1748145183570,0.8776,2512.9,2512.1,8.7736]
[1748145184440,0.8776,2512.9,2512.2,6.351]
[1748145184773,0.8776,2512.9,2512.3,6.351]
[1748145184946,0.8776,2512.9,2512.4,6.351]
[1748145186766,0.8776,2512.9,2512.5,6.351]
[1748145187578,0.8776,2512.9,2512.6,26.856]
[1748145188666,0.8776,2512.9,2512.6,6.85]
[1748145189038,0.8776,2512.9,2512.5,6.351]
[1748145191253,0.773,2512.7,2511.8,0.7706]
[1748145191462,0.04974764,2512.6,2511.9,6.351]
[1748145191768,0.773,2512.5,2511.9,6.351]
[1748145197603,0.773,2512.5,2512.0,26.859]
[1748145198809,0.55,2512.4,2511.2,0.47270256]
[1748145199122,0.7869,2512.3,2511.3,6.352]
[1748145199294,0.7869,2512.3,2511.4,8.0]
[1748145200113,0.7869,2512.3,2511.3,6.73010423]
[1748145200114,0.55,2512.2,2511.3,0.37810423]
[1748145200278,0.7869,2512.1,2511.4,6.352]
[1748145200698,0.7869,2512.1,2511.5,8.0]
[1748145201795,0.04976293,2512.0,2511.5,8.0]
[1748145201994,0.7869,2511.9,2511.5,8.0]
[1748145203018,0.7869,2511.9,2511.6,6.352]
[1748145203218,0.7869,2511.9,2511.7,6.352]
[1748145203520,0.7869,2511.9,2511.0,0.799]
[1748145203695,0.7869,2511.9,2511.2,6.352]
[1748145204924,0.7869,2511.9,2511.2,6.74522875]
[1748145207146,0.7869,2511.9,2511.2,0.39322875]
[1748145207283,0.7869,2511.9,2511.3,6.353]
[1748145207483,0.7869,2511.9,2511.4,6.851]
[1748145208020,0.7869,2511.9,2511.3,6.353]
[1748145212720,0.7869,2511.9,2511.2,0.40540217]
[1748145212949,0.7869,2511.9,2511.3,6.353]
[1748145217454,0.7869,2511.9,2511.4,5.718]
[1748145217660,0.7869,2511.9,2511.4,26.866]
[1748145217827,0.7869,2511.9,2511.4,6.852]
[1748145221761,0.7869,2511.9,2511.3,6.353]
[1748145222451,0.7884,2512.2,2511.4,0.7978]
[1748145222855,0.7884,2512.4,2511.4,0.7978]
[1748145223930,0.7884,2512.4,2511.5,0.37889802]
[1748145224148,0.7884,2512.4,2511.6,0.7906]
[1748145227456,0.7884,2512.4,2511.7,6.851]
[1748145229774,0.7884,2512.4,2511.6,0.7906]
[1748145233192,0.7884,2512.4,2511.4,0.8211]
[1748145233390,0.7884,2512.4,2511.2,1.19355563]
[1748145233590,0.7884,2512.4,2511.3,6.353]
[1748145233887,0.8297,2512.6,2511.3,6.73230486]
[1748145234187,0.8297,2512.3,2511.4,6.353]
[1748145235571,0.8297,2512.3,2511.5,6.353]
[1748145235775,0.8297,2512.3,2511.2,0.38927932]
[1748145235978,0.8297,2512.1,2511.6,6.353]
[1748145237395,0.8297,2512.1,2511.7,6.353]
[1748145237699,0.8297,2512.1,2511.8,6.849]
[1748145237900,0.8297,2512.1,2511.7,6.353]
[1748145238998,0.7669,2512.0,2511.7,6.353]
[1748145239371,0.7669,2512.0,2511.8,6.353]
[1748145240383,0.7669,2512.0,2510.9,0.7911]
[1748145240570,0.7669,2512.0,2511.0,6.353]
[1748145241703,0.7669,2512.0,2511.0,6.74869401]
[1748145242202,0.7669,2512.0,2511.1,8.37951309]
[1748145243503,0.7669,2512.0,2511.2,0.37951309]
[1748145243670,0.7669,2512.0,2511.7,1.39083541]
[1748145247513,0.7669,2512.0,2511.8,26.863]
[1748145247876,0.7669,2512.0,2511.8,6.85]
[1748145248407,0.7669,2512.0,2511.9,6.353]
[1748145250412,0.7669,2512.0,2511.0,0.39569401]
[1748145250591,0.823,2511.8,2511.4,1.39083541]
[1748145250911,0.823,2511.6,2511.4,1.39083541]
[1748145251110,0.55,2511.5,2511.0,0.39655028]
[1748145251309,0.55,2511.3,2510.7,1.39083541]
[1748145251612,0.823,2511.1,2510.8,6.353]
[1748145251815,0.823,2511.1,2510.9,1.39083541]
[1748145254124,0.823,2511.1,2510.9,9.39083541]
[1748145257437,0.823,2511.1,2511.0,5.719]
[1748145257630,0.823,2511.1,2511.0,26.867]
[1748145259053,0.823,2511.1,2510.9,9.39083541]
[1748145261252,0.823,2511.1,2510.8,1.39083541]
[1748145261555,0.823,2511.1,2511.0,6.354]
[1748145264375,0.823,2511.1,2511.0,7.74483541]
[1748145264966,0.7796,2511.3,2511.0,7.74483541]
[1748145265702,0.7796,2511.3,2511.2,1.39083541]
[1748145266192,9.60800671,2511.4,2511.2,1.39083541]
[1748145267495,9.60800671,2511.4,2511.3,26.87]
[1748145267694,0.7796,2511.5,2511.3,26.87]
[1748145268691,0.8213,2511.7,2511.4,1.39083541]
[1748145269698,1.52818538,2511.7,2511.4,1.39083541]
[1748145270758,1.52818538,2511.7,2511.5,6.355]
[1748145272291,0.8213,2511.7,2511.5,6.355]
[1748145272790,1.3713,2511.7,2511.6,6.355]
[1748145275668,0.8213,2511.7,2511.6,6.355]
[1748145275863,9.60800671,2511.8,2511.6,6.355]
[1748145276692,0.7704,2511.9,2511.6,6.355]
[1748145277199,0.7704,2511.9,2511.7,1.39083541]
[1748145277558,0.7704,2511.9,2511.8,26.865]
[1748145278197,1.3607,2512.1,2511.8,26.865]
[1748145278694,1.3607,2512.1,2511.8,6.848]
[1748145278995,0.8107,2512.1,2511.8,6.848]
[1748145279190,0.8107,2512.1,2511.9,1.39083541]
[1748145279366,0.8107,2512.3,2511.9,1.39083541]
[1748145279769,1.89020767,2512.3,2511.9,1.39083541]
[1748145280087,1.93996763,2512.3,2511.7,9.39083541]
[1748145280458,1.3607,2512.2,2511.7,9.39083541]
[1748145280656,0.55,2512.0,2511.8,6.354]
[1748145280865,0.8107,2511.9,2511.3,1.39083541]
[1748145281099,0.8107,2511.9,2511.4,6.354]
[1748145281300,0.8107,2511.9,2511.3,1.39083541]
[1748145281487,0.8107,2511.9,2511.5,6.354]
[1748145282797,0.55,2511.8,2511.6,6.354]
[1748145282962,2.37650067,2511.7,2511.6,6.354]
[1748145285497,1.3607,2511.7,2511.6,6.354]
[1748145287503,1.3607,2511.7,2511.6,33.216]
[1748145287803,0.55,2511.6,2511.1,1.39083541]
[1748145287989,0.59977831,2511.6,2511.2,6.354]
[1748145288201,0.8018,2511.5,2511.3,6.354]
[1748145290922,0.8018,2511.5,2511.1,1.39083541]
[1748145291139,1.3518,2511.5,2511.4,6.354]
[1748145291519,0.55,2511.7,2511.4,6.354]
[1748145291704,1.88438067,2511.7,2511.4,6.354]
[1748145293403,1.33438067,2511.7,2511.4,6.354]
[1748145293603,0.8018,2511.8,2511.4,6.354]
[1748145294040,9.60800671,2511.9,2511.5,1.39083541]
[1748145294197,9.60800671,2511.9,2511.4,6.354]
[1748145294198,9.60800671,2511.9,2511.7,1.39083541]
[1748145296233,9.60800671,2511.9,2511.8,6.354]
[1748145297616,9.60800671,2511.9,2511.6,0.8323]
[1748145297817,11.88720738,2511.9,2511.8,13.201]
[1748145297996,10.92640671,2511.9,2511.8,6.354]
[1748145301544,0.55,2511.8,2511.1,1.39083541]
[1748145301726,0.55,2511.8,2511.2,6.354]
[1748145301908,0.55,2511.8,2511.3,6.354]
[1748145303250,0.55,2511.8,2511.1,1.39083541]
[1748145303251,0.7927,2511.7,2511.1,1.39083541]
[1748145303454,0.7927,2511.7,2511.0,0.7725]
[1748145303455,0.59977551,2511.6,2511.0,0.7725]
[1748145303614,0.55,2511.6,2510.9,1.39083541]
[1748145303819,0.55,2511.6,2511.1,6.354]
[1748145305522,1.3427,2511.4,2511.2,6.354]
[1748145305763,0.55,2511.5,2511.2,6.354]
[1748145305966,0.55,2511.5,2511.3,1.39083541]
[1748145306141,0.7927,2511.6,2511.3,1.39083541]
[1748145306738,1.3427,2511.8,2511.3,1.39083541]
[1748145307070,0.3713413,2511.7,2511.3,1.39083541]
[1748145307570,0.3713413,2511.7,2511.4,26.86]
[1748145308073,0.3713413,2511.7,2511.4,6.844]
[1748145308402,2.43777067,2511.8,2511.4,6.844]
[1748145309857,0.7927,2511.8,2511.4,6.844]
[1748145310478,0.7927,2511.8,2511.3,2.21913541]
[1748145313358,9.60800671,2511.9,2511.5,1.39083541]
[1748145315271,0.7927,2512.0,2511.5,1.39083541]
[1748145317477,0.7927,2512.0,2511.6,21.141]
[1748145317773,1.88777067,2512.0,2511.7,6.354]
[1748145320739,0.7927,2512.0,2511.7,6.354]
[1748145320962,0.55,2512.1,2511.7,6.354]
[1748145321164,0.37146862,2512.0,2511.7,6.354]
[1748145321969,0.55,2512.1,2511.7,6.354]
[1748145322734,0.59976718,2512.1,2511.7,6.354]
[1748145322983,1.10248739,2512.0,2511.7,6.354]
[1748145324692,1.10248739,2512.0,2511.5,1.39083541]
[1748145324846,0.80736742,2511.9,2511.8,6.354]
[1748145325047,0.7576,2511.9,2511.8,6.354]
[1748145325262,1.3076,2511.9,2511.8,6.354]
[1748145325463,1.3076,2511.9,2511.3,0.8283]
[1748145325464,0.55,2511.8,2511.1,2.18783541]
[1748145325756,0.55,2511.8,2511.2,6.354]
[1748145326150,0.55,2511.8,2511.1,2.18783541]
[1748145326356,0.59977315,2511.8,2511.2,6.354]
[1748145326746,0.37168852,2511.7,2511.2,6.354]
[1748145326946,0.57469323,2511.7,2511.2,6.354]
[1748145327373,1.3076,2511.6,2511.1,0.797]
[1748145327586,1.3076,2511.6,2511.2,33.213]
[1748145327587,0.55,2511.4,2511.2,33.213]
[1748145327880,0.55,2511.4,2511.3,6.844]
[1748145329175,0.55,2511.5,2511.3,6.844]
[1748145329680,1.66186114,2511.5,2511.3,6.844]
[1748145329876,1.66186114,2511.5,2511.2,6.354]
[1748145330063,0.37168901,2511.4,2511.3,6.354]
[1748145330945,9.60800671,2511.7,2511.3,6.354]
[1748145331145,9.60800671,2511.7,2511.4,1.39083541]
[1748145331578,9.60800671,2511.7,2511.4,9.39083541]
[1748145331777,9.60800671,2511.7,2511.5,0.8033]
[1748145332848,0.55,2512.1,2511.6,1.39083541]
[1748145333486,0.55,2512.1,2511.5,0.8033]
[1748145333644,0.37157521,2512.0,2511.5,0.8033]
[1748145334783,0.55,2512.1,2511.5,0.8033]
[1748145335751,0.59976738,2512.1,2511.5,0.8033]
[1748145336082,0.55,2512.1,2511.5,0.8033]
[1748145336851,0.37158197,2512.0,2511.5,0.8033]
[1748145337383,0.55,2512.1,2511.5,0.8033]
[1748145337589,0.55,2512.1,2511.6,26.856]
[1748145337763,0.55,2512.1,2511.6,21.137]
[1748145338448,0.55,2512.1,2511.6,6.84]
[1748145339145,0.37159681,2512.0,2511.6,6.84]
[1748145340066,0.55,2512.1,2511.6,6.84]
[1748145340384,0.5997674,2512.1,2511.6,6.84]
[1748145340594,1.70348481,2512.1,2511.6,6.84]
[1748145340764,1.70348481,2512.1,2511.5,0.8033]
[1748145340968,0.55,2512.1,2511.5,0.8033]
[1748145341884,0.8007,2512.4,2511.5,0.8033]
[1748145342091,0.55,2512.3,2511.5,0.8033]
[1748145343087,0.55,2512.1,2511.5,0.8033]
[1748145344384,0.55,2512.3,2511.5,0.8033]
[1748145344881,0.8007,2512.4,2511.5,0.8033]
[1748145345484,0.37145442,2512.3,2511.5,0.8033]
[1748145346692,0.8007,2512.4,2511.5,0.8033]
[1748145347495,0.8007,2512.4,2511.7,8.0]
[1748145347663,0.8007,2512.4,2511.7,8.7827]
[1748145349495,1.3764,2512.6,2511.7,0.7827]
[1748145350267,0.37117296,2512.5,2511.7,0.7827]
[1748145350499,0.37117296,2512.5,2511.7,1.18516337]
[1748145350818,0.37117296,2512.5,2511.8,0.8094]
[1748145351868,1.3764,2512.6,2511.8,0.8094]
[1748145353608,11.6264,2512.6,2511.8,0.8094]
[1748145353906,12.78904,2512.6,2511.8,0.8094]
[1748145354108,0.37097653,2512.5,2511.8,0.8094]
[1748145354409,0.37097653,2512.5,2511.9,6.353]
[1748145355109,12.78904,2512.6,2511.9,6.353]
[1748145356329,12.78904,2512.6,2511.8,1.20817068]
[1748145356622,0.55,2512.2,2511.9,6.353]
[1748145356819,0.55,2512.2,2512.0,6.353]
[1748145357592,0.55,2512.2,2512.1,26.852]
[1748145358819,0.55,2512.2,2512.1,21.134]
[1748145359644,0.92132213,2512.2,2512.1,21.134]
[1748145360514,0.92132213,2512.2,2512.1,27.487]
[1748145362366,0.92132213,2512.2,2512.1,6.353]
[1748145364461,0.97108446,2512.2,2512.1,6.353]
[1748145365352,0.97108446,2512.2,2511.5,1.208256]
[1748145365537,0.97108446,2512.2,2511.6,6.353]
[1748145366426,0.37132213,2512.1,2511.6,6.353]
[1748145367435,0.37132213,2512.1,2511.7,20.013]
[1748145367628,0.55,2512.2,2511.7,26.847]
[1748145368048,0.55,2512.2,2511.7,21.129]
[1748145369253,8.0,2512.5,2511.6,6.353]
[1748145369464,0.55,2512.4,2511.7,0.7779]
[1748145369957,0.37169603,2512.3,2511.7,0.7779]
[1748145370362,0.42145863,2512.3,2511.7,0.7779]
[1748145371053,0.37169603,2512.2,2511.7,0.7779]
[1748145372061,0.55,2512.4,2511.7,0.7779]
[1748145372762,8.8069,2512.5,2511.7,0.7779]
[1748145373129,0.37178153,2512.3,2511.7,0.7779]
[1748145373964,8.8069,2512.5,2511.7,0.7779]
[1748145374770,0.37179679,2512.4,2511.7,0.7779]
[1748145375933,0.37179679,2512.3,2511.7,0.7779]
[1748145377345,8.8069,2512.5,2511.7,0.7779]
[1748145377562,0.04975912,2512.4,2511.8,26.847]
[1748145377866,0.55,2512.3,2511.8,6.834]
[1748145378064,0.55,2512.4,2511.8,6.834]
[1748145378271,0.37181087,2512.2,2511.8,6.834]
[1748145378765,0.37181087,2512.2,2511.9,6.353]
[1748145378942,1.74841087,2512.1,2511.5,1.171856]
[1748145379146,1.74841087,2512.1,2512.0,6.353]
[1748145381156,1.74841087,2512.1,2511.5,0.779]
[1748145381355,2.01682096,2512.1,2511.6,6.353]
[1748145381977,0.37181087,2512.0,2511.6,6.353]
[1748145382337,0.37181087,2512.0,2511.3,0.779]
[1748145382674,1.64501009,2512.1,2511.4,6.353]
[1748145384948,1.64501009,2512.1,2511.4,6.75183403]
[1748145385148,0.37183097,2512.0,2511.4,6.75183403]
[1748145386149,1.69477838,2512.1,2511.4,6.75183403]
[1748145387473,1.69477838,2512.1,2511.5,26.848]
[1748145387667,1.64501009,2512.1,2511.5,26.848]
[1748145387874,1.3766,2512.1,2511.5,26.848]
[1748145388568,1.3766,2512.1,2511.6,6.353]
[1748145388767,0.37184697,2512.0,2511.6,6.353]
[1748145389544,1.3766,2512.1,2511.6,6.353]
[1748145390470,1.3766,2512.1,2511.7,6.354]
[1748145391478,2.632829,2512.1,2511.7,6.354]
[1748145391875,0.37182251,2512.0,2511.7,6.354]
[1748145392576,1.3766,2512.1,2511.7,6.354]
[1748145394762,0.37180421,2512.0,2511.7,6.354]
[1748145395680,1.3766,2512.1,2511.7,6.354]
[1748145397390,2.4556467,2512.1,2511.7,6.354]
[1748145397695,2.4556467,2512.1,2511.8,26.841]
[1748145397895,2.4556467,2512.1,2511.8,21.123]
[1748145398897,2.4556467,2512.1,2511.8,6.827]
[1748145399102,0.55,2511.6,2510.9,0.7773]
[1748145399395,0.04977701,2511.5,2511.0,6.354]
[1748145399596,0.7738,2511.4,2511.0,6.354]
[1748145399797,0.7738,2511.4,2511.1,6.354]
[1748145400297,0.55,2511.5,2511.1,6.354]
[1748145402700,0.55,2511.5,2510.8,0.7773]
[1748145402878,0.55,2511.5,2511.2,6.354]
[1748145404400,0.55,2511.5,2510.8,1.17065434]
[1748145404591,0.55,2511.5,2510.9,6.354]
[1748145404793,0.55,2511.5,2511.0,6.354]
[1748145407109,0.55,2511.5,2510.8,0.7773]
[1748145407284,0.55,2511.5,2510.9,6.354]
[1748145407607,0.55,2511.5,2511.0,26.845]
[1748145408003,0.55,2511.5,2511.1,8.0]
[1748145412078,0.55,2511.5,2511.2,6.355]
[1748145412700,2.934,2511.5,2511.2,6.355]
[1748145412905,0.92078,2511.5,2511.2,6.355]
[1748145413216,1.3161,2511.4,2511.3,6.355]
[1748145413379,0.7661,2511.2,2509.3,0.174878]
[1748145413586,0.7661,2511.2,2510.2,7.1746]
[1748145414204,0.7661,2511.2,2510.2,0.8196]
[1748145414510,0.55,2511.1,2510.3,6.355]
[1748145414814,0.81588465,2511.0,2510.3,0.38765417]
[1748145415018,0.81588465,2511.0,2510.4,6.355]
[1748145415718,0.55,2510.9,2510.5,6.355]
[1748145417321,0.55,2510.9,2510.6,6.355]
[1748145417616,1.3161,2510.8,2510.7,21.129]
[1748145417918,12.72271,2510.8,2510.7,27.484]
[1748145418321,12.77491,2510.8,2510.7,27.484]
[1748145419220,0.8183,2510.7,2510.1,0.05]
[1748145419520,0.55,2510.4,2510.2,13.185]
[1748145419698,0.55,2510.4,2510.3,6.356]
[1748145421194,0.8183,2510.3,2510.1,0.05]
[1748145421388,0.8183,2510.3,2510.2,6.356]
[1748145421389,1.3683,2510.3,2510.2,6.356]
[1748145422623,11.6183,2510.3,2510.2,6.356]
[1748145426128,11.6183,2510.3,2510.1,0.05]
[1748145426423,1.3367,2510.2,2510.1,0.05]
[1748145426728,2.611553,2510.2,2510.1,6.407]
[1748145427434,2.611553,2510.2,2510.1,0.05]
[1748145427614,2.66135929,2510.2,2510.1,33.255]
[1748145427814,2.611553,2510.2,2510.1,33.255]
[1748145429320,2.611553,2510.2,2510.1,21.177]
[1748145429528,2.611553,2510.2,2510.1,27.534]
[1748145430902,2.611553,2510.2,2510.1,0.05]
[1748145431109,12.861553,2510.2,2510.1,0.05]
[1748145431304,12.861553,2510.2,2510.1,6.407]
[1748145431834,15.245553,2510.2,2510.1,6.407]
[1748145432037,15.245553,2510.2,2510.1,6.408]
[1748145432636,15.245553,2510.2,2510.1,0.05]
[1748145432844,24.63661084,2510.2,2510.1,6.408]
[1748145433144,2.934,2510.0,2508.7,0.7562]
[1748145433341,0.7731,2509.5,2509.2,6.358]
[1748145433532,0.7731,2509.5,2508.7,0.7562]
[1748145433843,0.7731,2509.5,2509.2,6.358]
[1748145435649,0.7731,2509.5,2508.7,0.7562]
[1748145435831,0.7731,2509.5,2509.3,6.358]
[1748145436033,0.7731,2509.3,2508.1,0.05]
[1748145436239,12.19551985,2509.2,2508.5,0.7549]
[1748145436439,12.14569186,2509.2,2509.1,6.408]
[1748145437649,12.14569186,2509.2,2509.1,27.542]
[1748145437851,12.14569186,2509.2,2509.1,13.234]
[1748145438226,12.14569186,2509.2,2509.1,0.05]
[1748145438442,12.14569186,2509.2,2509.1,6.409]
[1748145440978,12.14569186,2509.2,2509.1,6.41]
[1748145441245,12.14569186,2509.2,2509.1,0.05]
[1748145441450,12.14569186,2509.2,2509.1,6.41]
[1748145443351,23.29239186,2509.2,2509.1,6.41]
[1748145443557,23.29239186,2509.2,2509.1,0.05]
[1748145443754,23.29239186,2509.2,2509.1,6.41]
[1748145444661,15.66197307,2509.2,2509.1,6.41]
[1748145446154,15.66197307,2509.2,2509.1,0.05]
[1748145446352,15.66197307,2509.2,2509.1,6.411]
[1748145447564,15.66197307,2509.2,2509.1,27.55]
[1748145451067,15.66197307,2509.2,2509.1,13.238]
[1748145451384,15.66197307,2509.2,2509.1,6.411]
[1748145452868,23.66197307,2509.2,2509.1,0.05]
[1748145453166,27.84197307,2509.2,2509.1,6.411]
[1748145453331,2.934,2508.6,2508.1,0.05]
[1748145453536,0.55,2508.4,2508.2,6.361]
[1748145453728,0.55,2508.4,2508.1,0.05]
[1748145453930,0.55,2508.4,2508.3,6.361]
[1748145454326,12.8274,2508.5,2508.3,6.361]
[1748145454530,12.8274,2508.5,2508.3,7.1809]
[1748145455160,12.8274,2508.5,2508.3,6.361]
[1748145456142,12.8274,2508.5,2508.1,0.05]
[1748145456143,2.06284,2508.4,2508.1,0.05]
[1748145456569,0.59984259,2508.3,2508.1,0.05]
[1748145456732,0.59984259,2508.3,2508.2,6.362]
[1748145456934,3.30397734,2508.3,2508.2,6.362]
[1748145457250,3.7141,2508.2,2508.1,0.05]
[1748145457454,5.69663046,2508.2,2508.1,27.549]
[1748145459452,5.69663046,2508.2,2508.1,13.234]
[1748145459841,15.94663046,2508.2,2508.1,6.413]
[1748145461631,15.16653046,2508.2,2508.1,6.413]
[1748145461874,12.23253046,2508.2,2508.1,6.413]
[1748145462179,10.61997734,2508.2,2508.1,6.413]
[1748145463880,10.61997734,2508.2,2508.1,0.05]
[1748145464181,13.55397734,2508.2,2508.1,6.413]
[1748145465850,11.16997734,2508.2,2508.1,6.413]
[1748145466168,10.61997734,2508.2,2508.1,6.413]
[1748145467696,11.92037507,2508.2,2508.1,33.281]
[1748145469193,11.92037507,2508.2,2508.1,6.873]
[1748145469491,13.22487507,2508.2,2508.1,0.05]
[1748145469697,13.22487507,2508.2,2508.1,6.413]
[1748145470259,15.60887507,2508.2,2508.1,6.413]
[1748145470873,5.35887507,2508.2,2508.1,6.413]
[1748145471088,4.05847734,2508.2,2508.1,6.413]
[1748145471502,4.05847734,2508.2,2508.1,0.05]
[1748145471699,4.10832157,2508.2,2508.1,6.414]
[1748145471874,12.10832157,2508.2,2508.1,6.414]
[1748145472069,12.05847734,2508.2,2508.1,6.414]
[1748145472306,13.40343086,2508.2,2508.1,6.414]
[1748145473521,3.01943086,2508.2,2508.1,6.414]
[1748145473723,0.91997734,2508.2,2508.1,6.414]
[1748145477718,0.91997734,2508.2,2508.1,27.558]
[1748145478423,0.91997734,2508.2,2508.1,14.37]
[1748145478726,0.91997734,2508.2,2508.1,27.558]
[1748145479220,0.91997734,2508.2,2508.1,21.194]
[1748145479523,2.26493086,2508.2,2508.1,27.558]
[1748145481237,2.26493086,2508.2,2508.1,13.238]
[1748145481896,4.64893086,2508.2,2508.1,13.238]
[1748145483133,4.64893086,2508.2,2508.1,6.414]
[1748145486311,0.36997734,2508.2,2508.1,6.414]
[1748145486614,0.36997734,2508.2,2508.1,7.2067]
[1748145486911,10.25,2508.3,2508.1,7.2067]
[1748145487216,10.25,2508.3,2508.2,0.7927]
[1748145487640,10.25,2508.3,2508.2,27.6587]
[1748145489914,10.25,2508.3,2508.2,0.7927]
[1748145491944,18.25,2508.3,2508.2,0.7927]
[1748145494538,18.25,2508.3,2508.2,7.1557]
[1748145494746,18.25,2508.3,2508.2,0.7927]
[1748145494964,18.25,2508.3,2508.2,7.1557]
[1748145496353,18.25,2508.3,2508.2,0.7927]
[1748145496657,18.25,2508.3,2508.2,7.1557]
[1748145497655,18.25,2508.3,2508.2,34.0177]
[1748145498520,18.25,2508.3,2508.2,0.7927]
[1748145498861,18.25,2508.3,2508.2,7.1557]
[1748145501859,18.25,2508.3,2508.2,0.7927]
[1748145502026,18.25,2508.3,2508.2,7.1557]
[1748145503161,18.25,2508.3,2508.2,0.7927]
[1748145503362,18.25,2508.3,2508.2,7.1557]
[1748145503928,8.0,2508.3,2508.2,7.1557]
[1748145505030,8.0,2508.3,2508.2,0.7927]
[1748145505259,8.0,2508.3,2508.2,7.1557]
[1748145507468,8.0,2508.3,2508.2,34.0167]
[1748145508466,9.5785,2508.3,2508.2,20.044]
[1748145508637,1.5785,2508.3,2508.2,13.18]
[1748145509367,1.95022276,2508.3,2508.2,13.18]
[1748145509859,20.20022276,2508.3,2508.2,13.18]
[1748145510771,20.20022276,2508.3,2508.2,6.363]
[1748145511629,8.0,2508.2,2508.1,0.05]
[1748145511830,9.15204392,2508.2,2508.1,6.413]
[1748145512144,8.37172276,2508.2,2508.1,6.413]
[1748145516477,9.69762276,2508.2,2508.1,6.413]
[1748145517481,9.69762276,2508.2,2508.1,33.269]
[1748145520182,9.69762276,2508.2,2508.1,13.224]
[1748145521269,9.14762276,2508.2,2508.1,13.224]
[1748145521584,8.37172276,2508.2,2508.1,6.413]
[1748145522765,8.0,2508.2,2508.1,6.413]
[1748145525394,8.0,2508.2,2508.1,0.05]
[1748145525695,8.0,2508.2,2508.1,6.413]
[1748145527500,8.0,2508.2,2508.1,33.269]
[1748145530401,8.0,2508.2,2508.1,6.413]
[1748145533193,9.825,2508.2,2508.1,6.413]
[1748145533518,9.825,2508.2,2508.1,0.05]
[1748145533733,9.825,2508.2,2508.1,6.413]
[1748145534409,10.19738496,2508.2,2508.1,6.413]
[1748145537712,10.19738496,2508.2,2508.1,33.269]
[1748145537906,8.37238496,2508.2,2508.1,33.269]
[1748145538215,8.37238496,2508.2,2508.1,13.9878]
[1748145539316,8.37238496,2508.2,2508.1,13.224]
[1748145540016,8.37238496,2508.2,2508.1,6.413]
[1748145546412,8.37238496,2508.2,2508.1,0.05]
[1748145546577,11.03082346,2508.2,2508.1,6.413]
[1748145547525,11.03082346,2508.2,2508.1,33.262]
[1748145549129,10.23462346,2508.2,2508.1,33.262]
[1748145549326,8.37238496,2508.2,2508.1,14.368]